bitfinex/quotes_SOLUSD_20260304
["timestamp","ask_amount","ask_price","bid_price","bid_amount"]
[1772663428096,10.85737094,92.104,92.033,0.59620022]
[1772663428291,1.08407486,92.103,92.033,0.59620022]
[1772663428902,1.08407486,92.124,92.047,0.59620022]
[1772663429097,11.93900951,92.124,92.047,0.59620022]
[1772663429407,11.93900951,92.124,92.033,4.82477569]
[1772663429408,11.93900951,92.124,92.052,0.59620022]
[1772663429712,11.93900951,92.124,92.057,0.59620022]
[1772663429898,39.07634614,92.124,92.057,0.59620022]
[1772663430503,0.28432314,92.123,92.057,0.59620022]
[1772663430698,1.08407486,92.122,92.057,0.59620022]
[1772663431987,10.85528815,92.121,92.059,0.59620022]
[1772663432190,1.08407486,92.12,92.059,0.59620022]
[1772663432394,10.85528815,92.121,92.058,38.01950943]
[1772663432395,10.85467748,92.127,92.062,0.59620022]
[1772663432599,1.08407486,92.126,92.067,0.59620022]
[1772663432795,1.08407486,92.148,92.067,0.59620022]
[1772663432998,0.28432314,92.166,92.067,0.59620022]
[1772663433202,0.28432314,92.164,92.067,0.59620022]
[1772663433402,0.28432314,92.162,92.067,0.59620022]
[1772663433608,0.28432314,92.16,92.067,0.59620022]
[1772663433915,0.28432314,92.158,92.067,0.59620022]
[1772663434102,38.26340208,92.156,92.069,0.59620022]
[1772663434304,0.28432314,92.154,92.069,0.59620022]
[1772663434504,0.28432314,92.152,92.069,0.59620022]
[1772663434704,1.08407486,92.153,92.069,0.59620022]
[1772663434705,0.28432314,92.15,92.069,0.59620022]
[1772663434904,0.28432314,92.148,92.069,0.59620022]
[1772663435099,0.28432314,92.146,92.069,0.59620022]
[1772663435300,0.28432314,92.144,92.069,0.59620022]
[1772663435495,1.08407486,92.143,92.069,0.59620022]
[1772663437602,0.28432314,92.141,92.071,0.59620022]
[1772663437815,0.28432314,92.139,92.071,0.59620022]
[1772663438011,0.28432314,92.137,92.071,0.59620022]
[1772663438215,0.28432314,92.135,92.071,0.59620022]
[1772663438503,0.28432314,92.133,92.071,0.59620022]
[1772663438700,0.28432314,92.133,92.07,38.01455413]
[1772663438701,1.08407486,92.132,92.074,0.59620022]
[1772663438906,10.85281413,92.142,92.074,0.59620022]
[1772663438907,1.368398,92.141,92.074,0.59620022]
[1772663439333,0.28432314,92.137,92.074,0.59620022]
[1772663439504,0.28432314,92.135,92.074,0.59620022]
[1772663439700,37.98897233,92.132,92.076,0.59620022]
[1772663439905,1.08407486,92.131,92.076,0.59620022]
[1772663443041,10.85422772,92.13,92.078,0.59620022]
[1772663443239,1.08407486,92.129,92.078,0.59620022]
[1772663444728,0.28432314,92.137,92.078,0.59620022]
[1772663445843,0.28432314,92.162,92.08,0.59620022]
[1772663446151,0.28432314,92.16,92.08,0.59620022]
[1772663448548,0.28432314,92.158,92.082,0.59620022]
[1772663450030,0.14216157,92.158,92.082,0.59620022]
[1772663450645,0.28432314,92.158,92.083,38.00918735]
[1772663450847,0.28432314,92.158,92.084,0.59620022]
[1772663455636,0.28432314,92.158,92.083,38.00918735]
[1772663455637,8.72272885,92.13,92.033,0.59620022]
[1772663455946,265.85066785,92.157,92.035,0.59620022]
[1772663455947,0.28432314,92.116,92.035,0.59620022]
[1772663456859,0.28432314,92.114,92.037,0.59620022]
[1772663460768,0.28432314,92.112,92.037,0.59620022]
[1772663462064,0.28432314,92.112,92.038,10.86507746]
[1772663462247,0.28432314,92.112,92.039,0.59620022]
[1772663463063,0.28432314,92.088,91.999,92.3923086]
[1772663463273,0.28432314,92.074,91.999,92.3923086]
[1772663463448,0.52502545,92.073,91.999,92.3923086]
[1772663464959,0.52225665,92.071,92.007,0.55553804]
[1772663469673,0.28432314,92.087,92.022,0.55553804]
[1772663469967,0.79993131,92.087,92.022,0.55553804]
[1772663471669,0.79993131,92.087,92.027,0.55553804]
[1772663471670,0.28432314,92.085,92.027,0.55553804]
[1772663472448,0.79737761,92.085,92.027,0.55553804]
[1772663472652,0.28432314,92.083,92.027,0.55553804]
[1772663473469,0.51179957,92.083,92.027,0.55553804]
[1772663474366,10.85988575,92.082,92.032,0.55553804]
[1772663475375,0.53001062,92.077,91.991,27.17653411]
[1772663475551,0.14216157,92.062,91.991,27.17653411]
[1772663475872,0.53001062,92.053,91.991,27.17653411]
[1772663476078,0.53001062,92.053,91.994,3.69383402]
[1772663476469,0.53001062,92.046,91.969,10.87322902]
[1772663476771,0.53001062,92.022,91.969,10.87322902]
[1772663477473,0.53001062,92.022,91.97,0.55553804]
[1772663478549,0.50934797,92.02,91.972,0.53990818]
[1772663479852,10.86708468,92.021,91.972,0.53990818]
[1772663480769,11.37536991,92.03,91.973,38.05464646]
[1772663480971,43.44485668,92.071,91.977,0.53990818]
[1772663480972,10.86548062,92.035,91.977,0.53990818]
[1772663481178,0.50934797,92.034,91.977,0.53990818]
[1772663483564,0.50934797,92.032,91.979,0.53990818]
[1772663487372,0.5023264,92.014,91.964,10.87370318]
[1772663487574,0.5023264,92.002,91.955,38.06209558]
[1772663489356,38.04306474,92.001,91.955,10.87488445]
[1772663489579,0.5023264,91.992,91.954,11.70270513]
[1772663490583,0.5023264,91.992,91.954,11.70265463]
[1772663491867,0.5023264,91.99,91.955,0.50798184]
[1772663492475,10.86956521,92.0,91.955,0.50798184]
[1772663493960,38.32201305,92.014,91.956,10.87476619]
[1772663494186,38.32201305,92.014,91.957,0.50798184]
[1772663494484,0.5023264,92.013,91.957,0.50798184]
[1772663496191,0.5023264,92.011,91.959,0.50798184]
[1772663498898,0.5023264,92.011,91.961,0.50798184]
[1772663499194,0.5023264,92.009,91.961,0.50798184]
[1772663499786,10.86838387,92.01,91.961,0.50798184]
[1772663500785,0.5023264,92.009,91.961,0.50798184]
[1772663500986,0.5023264,92.007,91.963,0.50798184]
[1772663504677,0.5023264,92.005,91.965,0.50798184]
[1772663508794,0.5023264,92.005,91.967,0.50072841]
[1772663509196,10.86909264,92.004,91.967,0.50072841]
[1772663509597,11.38531663,92.004,91.967,0.50072841]
[1772663510184,0.51622399,92.004,91.967,0.50072841]
[1772663511183,0.51622399,92.003,91.969,0.50072841]
[1772663512481,0.51622399,92.003,91.97,38.05588778]
[1772663512812,0.51622399,92.003,91.971,0.50072841]
[1772663513093,10.86460528,92.042,91.971,0.52960629]
[1772663514484,38.0261185,92.042,91.973,0.52960629]
[1772663515898,10.86460528,92.042,91.973,0.52960629]
[1772663517011,0.28432314,92.062,91.975,0.52960629]
[1772663519310,0.28432314,92.06,91.977,0.52960629]
[1772663521006,19.26425056,92.06,91.977,0.52960629]
[1772663521201,0.28432314,92.058,91.979,0.52960629]
[1772663521521,38.01909644,92.059,91.984,0.52960629]
[1772663522393,38.01909644,92.059,91.99,0.52960629]
[1772663524003,0.28432314,92.079,91.993,0.52960629]
[1772663524914,19.26425056,92.079,91.993,0.52960629]
[1772663525513,19.26425056,92.079,91.995,0.52960629]
[1772663526629,0.28432314,92.077,91.997,0.52960629]
[1772663529721,10.86059342,92.076,92.003,0.52960629]
[1772663531025,10.85835278,92.095,92.005,0.52960629]
[1772663531396,0.28432314,92.094,92.014,0.52960629]
[1772663532127,38.00423474,92.095,92.014,0.52960629]
[1772663532300,0.14216157,92.094,92.014,0.52960629]
[1772663532500,0.14216157,92.094,92.016,0.52960629]
[1772663532699,0.28432314,92.094,92.016,0.52960629]
[1772663534530,38.0050601,92.093,92.018,0.52960629]
[1772663536528,38.0050601,92.093,92.02,0.52960629]
[1772663538912,56.98498752,92.093,92.022,0.52960629]
[1772663540313,0.28432314,92.069,92.021,10.86708468]
[1772663540931,0.28432314,92.067,92.017,0.52960629]
[1772663543719,0.28432314,92.065,92.019,0.52960629]
[1772663545120,4.07397603,92.05,92.001,0.52960629]
[1772663545319,0.28432314,92.049,92.001,0.52960629]
[1772663545513,0.28432314,92.039,91.989,0.52960629]
[1772663545722,0.28432314,92.037,91.991,0.52960629]
[1772663548324,4.07397603,92.05,91.993,0.52960629]
[1772663548325,0.28432314,92.035,91.993,0.52960629]
[1772663549833,0.28432314,92.033,91.994,10.87027414]
[1772663550037,0.28432314,92.033,91.995,0.52960629]
[1772663552143,10.86578581,92.032,91.997,0.52960629]
[1772663553137,38.03025034,92.032,91.997,0.52960629]
[1772663554131,38.03025034,92.032,91.996,10.87003782]
[1772663554132,38.30754989,92.049,91.999,0.52960629]
[1772663555721,0.28432314,92.047,91.999,0.52960629]
[1772663556123,0.28432314,92.045,91.993,0.52960629]
[1772663563047,0.28432314,92.043,91.995,0.52960629]
[1772663564041,29.84429663,92.044,91.995,0.52960629]
[1772663565851,29.84429663,92.044,91.997,0.52960629]
[1772663567652,0.28432314,92.043,91.997,0.52960629]
[1772663567836,57.00521966,92.044,91.985,27.17808431]
[1772663567837,0.28432314,92.037,91.999,0.52960629]
[1772663571959,0.28432314,92.035,92.001,0.52960629]
[1772663575060,0.28432314,92.033,92.001,0.52960629]
[1772663575256,0.28432314,92.033,91.989,0.52960629]
[1772663575454,0.28432314,92.029,91.989,11.40039908]
[1772663575657,0.28432314,92.029,91.99,0.52960629]
[1772663575841,0.28432314,92.033,91.99,0.52960629]
[1772663576959,0.28432314,92.033,91.954,0.82770733]
[1772663576960,10.86578581,92.032,91.992,0.52960629]
[1772663579195,10.86578581,92.032,91.994,0.52960629]
[1772663581771,38.03025034,92.032,91.994,0.52960629]
[1772663582870,38.03025034,92.032,91.995,0.52960629]
[1772663583965,38.03025034,92.032,91.996,10.87003782]
[1772663584168,38.03025034,92.032,91.997,0.52960629]
[1772663584169,10.86578581,92.032,91.997,0.52960629]
[1772663587961,10.86578581,92.032,91.955,43.49943553]
[1772663587962,27.16127715,92.043,91.999,0.52960629]
[1772663588772,10.86460528,92.042,91.999,0.52960629]
[1772663589373,10.86460528,92.042,92.001,0.52960629]
[1772663590666,10.86460528,92.042,92.002,10.86932892]
[1772663590862,10.86460528,92.042,92.003,0.52960629]
[1772663594776,10.86460528,92.042,92.005,0.52960629]
[1772663595081,10.86460528,92.042,92.004,10.86909264]
[1772663595258,10.86460528,92.042,91.994,0.52960629]
[1772663595259,0.14216157,92.039,91.994,10.87018314]
[1772663595459,4.07995041,92.04,91.995,0.52960629]
[1772663595884,10.86460528,92.042,91.995,0.52960629]
[1772663595885,18.97992742,92.039,91.995,0.52960629]
[1772663598070,38.31209427,92.038,91.995,0.52960629]
[1772663598685,38.31209427,92.038,91.996,10.87003782]
[1772663598865,0.28432314,92.036,91.996,10.87003782]
[1772663600077,0.28432314,92.036,91.959,0.52960629]
[1772663600391,0.28432314,92.019,91.96,0.52960629]
[1772663600578,0.28432314,92.029,91.96,0.52960629]
[1772663601783,0.28432314,92.027,91.961,38.05961222]
[1772663601991,0.28432314,92.027,91.962,0.52960629]
[1772663605489,0.28432314,92.025,91.964,0.52960629]
[1772663605695,0.28432314,92.019,91.964,0.52960629]
[1772663606383,0.28432314,92.017,91.964,0.52960629]
[1772663606585,0.28432314,92.009,91.964,0.52960629]
[1772663607690,0.28432314,91.999,91.964,0.52960629]
[1772663609213,0.28432314,92.007,91.964,0.52960629]
[1772663613988,0.28432314,92.005,91.964,0.52960629]
[1772663614893,38.04182426,92.004,91.964,0.52960629]
[1772663615076,0.28432314,92.003,91.964,0.52960629]
[1772663616397,27.16959028,92.015,91.966,0.52960629]
[1772663616581,10.86578581,92.032,91.966,0.52960629]
[1772663616990,0.28432314,92.031,91.966,0.52960629]
[1772663617195,27.16682394,92.025,91.968,0.52960629]
[1772663617381,0.28432314,92.024,91.968,0.52960629]
[1772663618395,10.8668485,92.023,91.969,38.05630157]
[1772663618576,10.8668485,92.023,91.97,0.52960629]
[1772663622102,10.86578581,92.032,91.972,0.52960629]
[1772663625905,10.86578581,92.032,91.974,0.52960629]
[1772663628990,10.86578581,92.032,91.976,0.52960629]
[1772663631887,38.03025034,92.032,91.978,0.52960629]
[1772663633600,38.03025034,92.032,91.98,0.52960629]
[1772663634991,38.03025034,92.032,91.982,0.52960629]
[1772663636799,10.86271698,92.058,91.982,0.52960629]
[1772663637006,27.15799193,92.054,91.984,0.52960629]
[1772663637197,0.28432314,92.053,91.984,0.52960629]
[1772663637515,27.15799193,92.054,91.984,0.52960629]
[1772663638294,0.14216157,92.053,91.984,0.52960629]
[1772663638814,0.28432314,92.053,91.984,0.52960629]
[1772663641616,10.86342502,92.052,91.986,0.52960629]
[1772663642705,38.02198757,92.052,91.986,0.52960629]
[1772663643922,38.02198757,92.052,91.988,0.52960629]
[1772663646021,27.15856255,92.052,91.99,0.52960629]
[1772663648123,10.86271698,92.058,91.992,0.52960629]
[1772663648326,38.01950943,92.058,91.992,0.52960629]
[1772663652927,0.28432314,92.077,91.994,0.52960629]
[1772663653229,0.28432314,92.075,91.994,0.52960629]
[1772663655531,0.28432314,92.073,91.996,0.52960629]
[1772663656519,38.01372838,92.072,91.997,38.04471884]
[1772663656718,0.28432314,92.071,91.998,0.52960629]
[1772663659022,0.28432314,92.069,92.0,0.52960629]
[1772663661816,4.08417361,92.06,92.001,38.04306474]
[1772663662016,0.28432314,92.039,91.989,41.79521718]
[1772663662232,3.69383402,92.056,91.989,41.26561089]
[1772663662233,0.28432314,92.029,91.989,41.26561089]
[1772663662918,4.08417361,92.02,91.955,0.52960629]
[1772663663117,0.28432314,92.009,91.956,0.52960629]
[1772663663926,0.28432314,92.007,91.957,10.87464793]
[1772663664132,0.28432314,92.007,91.958,0.52960629]
[1772663666439,0.28432314,92.005,91.96,0.52960629]
[1772663667541,0.28432314,92.003,91.962,0.52960629]
[1772663672042,38.04265123,92.002,91.955,10.87488445]
[1772663672247,0.28432314,91.999,91.954,12.23221205]
[1772663672448,0.28432314,91.999,91.955,0.52960629]
[1772663675049,0.28432314,91.997,91.955,0.52960629]
[1772663676948,0.28432314,91.995,91.955,0.52960629]
[1772663678151,0.28432314,91.993,91.955,0.52960629]
[1772663678554,0.28432314,91.991,91.955,0.52960629]
[1772663679437,19.26425056,91.991,91.955,0.52960629]
[1772663679951,0.28432314,91.989,91.955,0.52960629]
[1772663682345,0.28432314,91.987,91.955,0.52960629]
[1772663687857,10.87121953,91.986,91.955,0.52960629]
[1772663688161,10.87121953,91.986,91.957,0.52960629]
[1772663690976,27.17745792,91.988,91.959,0.52960629]
[1772663695064,38.32408011,92.009,91.959,0.52960629]
[1772663695267,0.28432314,92.007,91.959,0.52960629]
[1772663697577,0.28432314,92.005,91.959,0.52960629]
[1772663701186,0.28432314,92.005,91.94,0.3094678]
[1772663701187,0.28432314,91.979,91.94,0.3094678]
[1772663701355,0.28432314,91.979,91.936,0.52960629]
[1772663701559,4.08449269,92.0,91.914,10.8797063]
[1772663701560,0.46789141,91.953,91.914,10.8797063]
[1772663701758,0.46789141,91.943,91.898,10.88161608]
[1772663701976,0.46789141,91.933,91.898,10.88161608]
[1772663703074,0.46789141,91.928,91.847,54.43835944]
[1772663703270,0.46789141,91.922,91.847,92.54521104]
[1772663703580,0.46789141,91.922,91.892,0.48630414]
[1772663703766,0.28432314,91.919,91.851,0.48630414]
[1772663703967,0.28432314,91.901,91.851,0.48630414]
[1772663704369,0.37691376,91.892,91.851,0.48630414]
[1772663705370,11.25929743,91.891,91.853,0.48630414]
[1772663705573,0.37683887,91.89,91.853,0.48630414]
[1772663706356,10.88115601,91.902,91.853,0.48630414]
[1772663706794,10.88062512,91.907,91.853,0.48630414]
[1772663706979,0.37669167,91.93,91.856,0.48630414]
[1772663707279,10.87796016,91.929,91.856,0.48630414]
[1772663707478,0.37669167,91.928,91.861,0.48630414]
[1772663708976,0.28432314,91.911,91.861,0.48630414]
[1772663709175,0.28432314,91.895,91.861,0.48630414]
[1772663709369,10.88245856,91.891,91.861,0.48630414]
[1772663709573,0.37654782,91.89,91.861,0.48630414]
[1772663711886,10.88269542,91.889,91.861,0.48630414]
[1772663712267,10.88219142,91.894,91.863,0.48630414]
[1772663717796,10.88219142,91.894,91.826,43.560393]
[1772663717797,0.46789141,91.884,91.821,38.11764192]
[1772663718005,0.46789141,91.872,91.821,38.11764192]
[1772663718289,27.20466614,91.896,91.815,10.89146101]
[1772663718290,0.28432314,91.859,91.815,10.89146101]
[1772663718470,0.28432314,91.879,91.821,0.46707942]
[1772663719582,0.28432314,91.869,91.821,0.46707942]
[1772663719782,0.28432314,91.867,91.821,11.35783425]
[1772663719984,0.28432314,91.867,91.822,0.46707942]
[1772663720493,0.14216157,91.865,91.822,0.46707942]
[1772663720690,0.28432314,91.865,91.822,0.46707942]
[1772663720896,0.39410237,91.862,91.822,0.46707942]
[1772663722201,0.39404154,91.86,91.823,11.35759704]
[1772663722394,0.39404154,91.852,91.82,0.2351472]
[1772663723399,0.39404154,91.852,91.821,10.89075483]
[1772663723589,0.39404154,91.852,91.822,0.46707942]
[1772663723790,0.28432314,91.847,91.822,0.46707942]
[1772663724093,0.28432314,91.845,91.822,0.46707942]
[1772663724798,0.28432314,91.843,91.822,0.46707942]
[1772663725186,0.67818635,91.843,91.822,0.46707942]
[1772663726302,10.88826462,91.842,91.822,0.46707942]
[1772663726477,10.88707921,91.852,91.824,0.4865967]
[1772663727396,0.39369096,91.851,91.824,0.4865967]
[1772663728187,0.39369096,91.851,91.82,0.2351472]
[1772663728381,0.39363486,91.849,91.82,0.7217439]
[1772663729197,0.3935794,91.843,91.82,0.2351472]
[1772663730479,10.88826462,91.842,91.82,0.2351472]
[1772663730680,0.39347038,91.861,91.821,0.4865967]
[1772663730880,0.28432314,91.857,91.822,0.4865967]
[1772663731080,0.28432314,91.854,91.822,0.4865967]
[1772663731285,0.28432314,91.854,91.82,0.2351472]
[1772663731286,0.39347038,91.853,91.82,0.2351472]
[1772663731798,0.39341681,91.839,91.82,0.2351472]
[1772663732702,0.39341681,91.839,91.805,0.4865967]
[1772663732703,0.15821666,91.833,91.805,0.4865967]
[1772663732891,0.4425398,91.826,91.771,0.4865967]
[1772663733906,0.28432314,91.824,91.774,0.4865967]
[1772663734198,0.15816431,91.85,91.777,0.4865967]
[1772663734398,0.15816431,91.852,91.777,0.4865967]
[1772663734590,0.15816431,91.853,91.777,0.4865967]
[1772663734786,0.28432314,91.856,91.777,0.4865967]
[1772663735502,0.14216157,91.856,91.777,0.4865967]
[1772663735902,0.28432314,91.856,91.782,0.4865967]
[1772663736902,0.28432314,91.854,91.787,0.4865967]
[1772663737605,0.15801085,91.838,91.787,0.4865967]
[1772663737800,0.44228401,91.835,91.787,0.4865967]
[1772663738196,0.28432314,91.833,91.787,0.4865967]
[1772663739006,10.8894503,91.832,91.789,0.4865967]
[1772663740402,0.15786262,91.831,91.789,0.4865967]
[1772663741209,11.0475018,91.83,91.791,0.4865967]
[1772663742807,0.15771944,91.829,91.793,0.4865967]
[1772663744699,11.17294344,91.839,91.793,0.4865967]
[1772663744700,10.8886203,91.839,91.793,0.4865967]
[1772663745711,0.28432314,91.846,91.795,0.4865967]
[1772663746304,0.15758113,91.846,91.795,0.4865967]
[1772663749212,0.28432314,91.844,91.797,0.46075226]
[1772663749517,0.44172717,91.844,91.797,0.46075226]
[1772663749695,0.44168415,91.844,91.797,0.46075226]
[1772663749895,0.15736101,91.843,91.797,0.46075226]
[1772663750890,10.88814607,91.843,91.799,0.46075226]
[1772663751220,11.04546456,91.843,91.799,0.46075226]
[1772663751404,10.88814607,91.843,91.799,0.46075226]
[1772663751713,0.15731849,91.842,91.799,0.46075226]
[1772663755113,0.15715325,91.84,91.801,0.46075226]
[1772663758207,0.15715325,91.84,91.803,0.46075226]
[1772663759826,10.88743481,91.849,91.805,0.46075226]
[1772663760322,0.15695714,91.829,91.795,10.89383953]
[1772663760619,0.4526397,91.837,91.795,38.12843836]
[1772663761020,4.09884487,91.84,91.795,38.12843836]
[1772663761726,0.28432314,91.845,91.795,38.12843836]
[1772663761916,0.4526397,91.864,91.783,3.69383402]
[1772663762118,6.14207518,91.876,91.795,3.69383402]
[1772663762311,0.28432314,91.875,91.794,0.46075226]
[1772663762918,6.14207518,91.876,91.794,0.46075226]
[1772663763218,10.88435374,91.875,91.799,0.46075226]
[1772663763525,0.14216157,91.874,91.799,0.46075226]
[1772663763728,0.28432314,91.874,91.799,0.46075226]
[1772663764330,10.88459068,91.873,91.805,0.46075226]
[1772663765919,11.33723038,91.873,91.805,0.46075226]
[1772663766109,0.4526397,91.872,91.805,0.46075226]
[1772663767132,0.4526397,91.872,91.81,0.46075226]
[1772663767837,10.88482763,91.871,91.81,0.46075226]
[1772663769517,10.88482763,91.871,91.812,0.46075226]
[1772663770134,0.4526397,91.87,91.812,0.46075226]
[1772663771429,0.4526397,91.87,91.814,0.46075226]
[1772663772835,11.3376601,91.87,91.816,0.46075226]
[1772663774933,0.4526397,91.869,91.818,0.46075226]
[1772663775432,0.4526397,91.849,91.818,0.46075226]
[1772663777239,0.4526397,91.839,91.798,0.46075226]
[1772663777440,0.4526397,91.809,91.782,0.46075226]
[1772663777939,0.4526397,91.819,91.782,0.46075226]
[1772663778134,0.4526397,91.827,91.782,0.46075226]
[1772663778340,4.09884487,91.82,91.782,0.46075226]
[1772663778716,0.46676702,91.819,91.782,0.46075226]
[1772663779538,0.46676702,91.835,91.784,0.47091652]
[1772663780819,0.46676702,91.829,91.786,0.47091652]
[1772663784631,0.46676702,91.829,91.788,0.47091652]
[1772663786323,0.46676702,91.829,91.79,0.46281646]
[1772663789119,0.46676702,91.829,91.792,0.46281646]
[1772663789320,0.4696595,91.809,91.786,10.89490772]
[1772663791232,0.4696595,91.807,91.78,10.89554175]
[1772663791442,0.4696595,91.807,91.78,11.35835821]
[1772663791634,0.4696595,91.789,91.77,0.83761577]
[1772663793645,0.4696595,91.787,91.77,0.83761577]
[1772663794640,0.4696595,91.787,91.77,0.22102847]
[1772663795631,10.89490772,91.786,91.77,0.22102847]
[1772663795833,0.4696595,91.787,91.77,0.22102847]
[1772663796157,10.89443081,91.791,91.771,0.5010879]
[1772663796158,10.8943376,91.791,91.771,0.5010879]
[1772663797147,10.89381231,91.796,91.771,0.5010879]
[1772663798635,4.10222123,91.8,91.771,0.5010879]
[1772663799243,10.89039902,91.824,91.773,0.5010879]
[1772663799432,43.5387636,91.873,91.773,0.5010879]
[1772663799433,10.88470916,91.872,91.773,0.5010879]
[1772663799633,10.88470916,91.872,91.776,0.5010879]
[1772663799634,4.10222123,91.85,91.776,0.5010879]
[1772663799852,0.28432314,91.849,91.776,0.5010879]
[1772663800232,4.10222123,91.85,91.776,0.5010879]
[1772663800750,0.28432314,91.847,91.781,0.5010879]
[1772663801151,10.88755334,91.848,91.781,0.5010879]
[1772663801346,4.10222123,91.82,91.781,0.5010879]
[1772663803840,4.10222123,91.83,91.783,0.5010879]
[1772663804047,27.2126615,91.869,91.783,0.5010879]
[1772663804241,4.10222123,91.84,91.783,0.5010879]
[1772663805042,81.63798451,91.869,91.783,0.5010879]
[1772663805238,4.10222123,91.85,91.783,0.5010879]
[1772663806336,10.88686757,91.854,91.788,0.5010879]
[1772663806651,4.10222123,91.87,91.793,0.5010879]
[1772663807157,4.10222123,91.86,91.793,0.5010879]
[1772663807462,4.10222123,91.87,91.793,0.5010879]
[1772663807760,4.10222123,91.86,91.798,0.5010879]
[1772663811573,10.88624957,91.859,91.8,0.5010879]
[1772663812558,4.10222123,91.83,91.797,10.89360218]
[1772663812764,4.10222123,91.83,91.798,0.5010879]
[1772663813465,38.10187351,91.859,91.791,0.5010879]
[1772663813466,4.10222123,91.82,91.791,0.5010879]
[1772663813760,4.10222123,91.81,91.781,0.5010879]
[1772663813970,0.28432314,91.809,91.771,0.5010879]
[1772663814154,4.10222123,91.8,91.771,0.5010879]
[1772663815761,10.89336485,91.799,91.771,0.5010879]
[1772663816866,10.89336485,91.799,91.77,0.22102847]
[1772663816867,8.79039704,91.79,91.77,0.22102847]
[1772663817359,0.28432314,91.789,91.754,0.5010879]
[1772663817939,0.28432314,91.787,91.754,0.5010879]
[1772663818448,10.89467032,91.788,91.76,0.5010879]
[1772663818750,10.89467032,91.788,91.75,0.3816987]
[1772663818946,10.89336485,91.799,91.762,0.5010879]
[1772663819965,8.79039704,91.85,91.763,81.7322886]
[1772663820266,0.28432314,91.839,91.764,0.5010879]
[1772663820567,8.79039704,91.84,91.764,0.5010879]
[1772663820754,0.28432314,91.839,91.764,0.5010879]
[1772663820956,8.79039704,91.85,91.767,0.5010879]
[1772663821153,38.10602183,91.849,91.769,0.5010879]
[1772663821666,0.28432314,91.848,91.769,0.5010879]
[1772663821966,0.14216157,91.848,91.769,0.5010879]
[1772663822370,0.28432314,91.848,91.769,0.5010879]
[1772663823154,0.28432314,91.846,91.771,0.5010879]
[1772663823753,0.28432314,91.839,91.771,0.5010879]
[1772663824649,0.28432314,91.846,91.771,0.5010879]
[1772663825863,38.10768141,91.845,91.773,0.5010879]
[1772663826060,0.14216157,91.844,91.773,0.5010879]
[1772663827274,0.14216157,91.844,91.775,0.5010879]
[1772663827856,0.28432314,91.844,91.775,0.5010879]
[1772663831873,18.97992742,91.866,91.761,0.47795361]
[1772663831874,8.79039704,91.83,91.777,0.5010879]
[1772663832061,0.28432314,91.839,91.777,0.5010879]
[1772663833981,0.28432314,91.829,91.779,0.5010879]
[1772663834281,8.79039704,91.82,91.779,0.5010879]
[1772663836276,0.28432314,91.809,91.775,0.5010879]
[1772663837382,0.28432314,91.818,91.775,0.5010879]
[1772663838166,0.28432314,91.799,91.762,0.5010879]
[1772663838365,0.28432314,91.799,91.762,11.39884514]
[1772663838567,0.28432314,91.799,91.763,0.5010879]
[1772663839181,0.28432314,91.807,91.763,0.5010879]
[1772663842265,0.28432314,91.805,91.765,0.5010879]
[1772663849303,4.10222263,91.8,91.759,0.5010879]
[1772663849499,4.10222263,91.8,91.762,0.5010879]
[1772663851002,4.10222263,91.8,91.761,10.89780856]
[1772663851181,0.28432314,91.797,91.759,0.5010879]
[1772663852780,38.1271923,91.798,91.759,0.5010879]
[1772663853981,0.28432314,91.809,91.761,0.5010879]
[1772663854996,4.10222263,91.79,91.751,10.89906377]
[1772663855174,92.57645725,91.816,91.751,10.89906377]
[1772663855175,4.10222263,91.78,91.751,10.89906377]
[1772663855373,4.10222263,91.79,91.751,10.89906377]
[1772663855798,4.10222263,91.79,91.752,0.5010879]
[1772663856097,38.13093071,91.789,91.754,0.5010879]
[1772663856995,11.17780665,91.798,91.754,0.5010879]
[1772663857595,38.41151544,91.798,91.754,0.5010879]
[1772663858602,38.41151544,91.798,91.756,0.5010879]
[1772663863203,38.41151544,91.798,91.757,10.89835107]
[1772663863504,38.41151544,91.798,91.758,0.5010879]
[1772663866178,38.41151544,91.798,91.76,0.5010879]
[1772663868412,38.41151544,91.798,91.762,0.5010879]
[1772663868709,10.89348351,91.798,91.762,0.5010879]
[1772663870291,73.42253207,91.84,91.764,0.5010879]
[1772663870486,77.52449997,91.84,91.764,0.5010879]
[1772663870688,73.42253207,91.84,91.764,0.5010879]
[1772663870910,4.1019679,91.83,91.764,0.5010879]
[1772663871216,0.28432314,91.829,91.764,0.5010879]
[1772663871925,0.28432314,91.827,91.766,0.5010879]
[1772663874916,0.28432314,91.825,91.768,0.5010879]
[1772663876494,4.1019679,91.82,91.768,0.5010879]
[1772663880008,10.89039902,91.824,91.769,38.13924091]
[1772663880207,10.89039902,91.824,91.77,0.5010879]
[1772663880411,10.89039902,91.824,91.75,0.3816987]
[1772663880412,38.11639658,91.824,91.765,0.5010879]
[1772663880604,4.1019679,91.78,91.75,0.3816987]
[1772663880807,0.46408673,91.779,91.75,11.28084946]
[1772663882521,0.46408673,91.779,91.752,11.35863881]
[1772663882720,0.46408673,91.779,91.753,0.45969383]
[1772663882923,10.89289021,91.803,91.753,0.48258731]
[1772663884018,4.1019679,91.77,91.739,0.48258731]
[1772663884320,4.1019679,91.77,91.689,43.62526131]
[1772663884321,0.28432314,91.759,91.7,0.48258731]
[1772663884516,0.28432314,91.757,91.702,0.48258731]
[1772663884916,0.03555145,91.756,91.702,0.48258731]